[Event "Titled Tuesday Blitz February 21 Early 2023"]
[White "Khamdamova, Afruza"]
[Black "Tabatabaei, M. Amin"]
[WhiteFideId "14210444"]
[BlackFideId "12521213"]
[WhiteElo "2162"]
[BlackElo "2677"]
[Result "0-1"]
[Round "01"]
[TimeControl "180+2"]
[Date "2023.02.21"]
[WhiteClock "0:00:50"]
[BlackClock "0:01:42"]

1. e4 {[%clk 0:02:58]}  c6 {[%clk 0:02:59]} 2. d4 {[%clk 0:02:57]}  d5 {[%clk 0:03:00]} 3. Nc3 {[%clk 0:02:56]}  dxe4 {[%clk 0:03:00]} 4. Nxe4 {[%clk 0:02:57]}  Nf6 {[%clk 0:03:01]} 5. Nxf6+ {[%clk 0:02:57]}  exf6 {[%clk 0:03:02]} 6. c3 {[%clk 0:02:57]}  Bd6 {[%clk 0:03:02]} 7. Bd3 {[%clk 0:02:58]}  O-O {[%clk 0:03:02]} 8. Qc2 {[%clk 0:02:57]}  Re8+ {[%clk 0:03:03]} 9. Ne2 {[%clk 0:02:57]}  h5 {[%clk 0:03:04]} 10. O-O {[%clk 0:02:55]}  Qc7 {[%clk 0:03:01]} 11. h3 {[%clk 0:02:54]}  h4 {[%clk 0:03:01]} 12. Bd2 {[%clk 0:02:53]}  Nd7 {[%clk 0:03:01]} 13. Rae1 {[%clk 0:02:51]}  Nf8 {[%clk 0:03:02]} 14. c4 {[%clk 0:02:45]}  Be6 {[%clk 0:02:59]} 15. Nc3 {[%clk 0:02:41]}  Rad8 {[%clk 0:02:57]} 16. Be3 {[%clk 0:02:34]}  Qd7 {[%clk 0:02:54]} 17. Ne4 {[%clk 0:02:28]}  Bb8 {[%clk 0:02:52]} 18. Nc5 {[%clk 0:02:23]}  Qc7 {[%clk 0:02:47]} 19. f4 {[%clk 0:02:22]}  Bc8 {[%clk 0:02:45]} 20. Qf2 {[%clk 0:02:03]}  Ng6 {[%clk 0:02:41]} 21. Bxg6 {[%clk 0:01:58]}  fxg6 {[%clk 0:02:42]} 22. Qxh4 {[%clk 0:01:56]}  b6 {[%clk 0:02:40]} 23. Nb3 {[%clk 0:01:43]}  Bf5 {[%clk 0:02:37]} 24. Nc1 {[%clk 0:01:26]}  b5 {[%clk 0:02:34]} 25. b3 {[%clk 0:01:21]}  Qa5 {[%clk 0:02:34]} 26. Qf2 {[%clk 0:01:19]}  bxc4 {[%clk 0:02:33]} 27. bxc4 {[%clk 0:01:19]}  Qc3 {[%clk 0:02:34]} 28. c5 {[%clk 0:01:13]}  Bc7 {[%clk 0:02:18]} 29. Bd2 {[%clk 0:01:12]}  Qc4 {[%clk 0:02:18]} 30. Rxe8+ {[%clk 0:01:06]}  Rxe8 {[%clk 0:02:19]} 31. Nb3 {[%clk 0:01:00]}  Re2 {[%clk 0:02:13]} 32. Qg3 {[%clk 0:00:59]}  g5 {[%clk 0:01:52]} 33. Qc3 {[%clk 0:00:56]}  Qxc3 {[%clk 0:01:45]} 34. Bxc3 {[%clk 0:00:55]}  Bxf4 {[%clk 0:01:46]} 35. d5 {[%clk 0:00:53]}  Be4 {[%clk 0:01:42]} 36. Rf2 {[%clk 0:00:50]}  Be3 {[%clk 0:01:42]} 0-1


[Site "https://www.chess.com"]

[Event "Titled Tuesday Blitz February 21 Early 2023"]
[White "Bortnyk, Mykola"]
[Black "Malka, Samuel"]
[WhiteFideId "14120836"]
[BlackFideId "20643675"]
[WhiteElo "2425"]
[BlackElo "2165"]
[Result "1-0"]
[Round "01"]
[TimeControl "180+2"]
[Date "2023.02.21"]
[WhiteClock "0:01:52"]
[BlackClock "0:00:43"]

1. e4 {[%clk 0:02:56]}  e5 {[%clk 0:02:55]} 2. Nf3 {[%clk 0:02:56]}  Nc6 {[%clk 0:02:55]} 3. Bb5 {[%clk 0:02:56]}  a6 {[%clk 0:02:53]} 4. Ba4 {[%clk 0:02:57]}  Nf6 {[%clk 0:02:51]} 5. Qe2 {[%clk 0:02:57]}  Be7 {[%clk 0:02:46]} 6. O-O {[%clk 0:02:57]}  b5 {[%clk 0:02:34]} 7. Bb3 {[%clk 0:02:56]}  O-O {[%clk 0:02:34]} 8. c3 {[%clk 0:02:54]}  d5 {[%clk 0:02:35]} 9. exd5 {[%clk 0:02:54]}  Nxd5 {[%clk 0:02:36]} 10. Nxe5 {[%clk 0:02:54]}  Nxe5 {[%clk 0:02:30]} 11. Qxe5 {[%clk 0:02:55]}  Bb7 {[%clk 0:02:21]} 12. d4 {[%clk 0:02:55]}  Bd6 {[%clk 0:02:07]} 13. Qh5 {[%clk 0:02:54]}  g6 {[%clk 0:01:40]} 14. Qh6 {[%clk 0:02:49]}  Qf6 {[%clk 0:01:29]} 15. Bg5 {[%clk 0:02:38]}  Qf5 {[%clk 0:01:25]} 16. Nd2 {[%clk 0:02:04]}  Bf4 {[%clk 0:01:24]} 17. Nf3 {[%clk 0:01:59]}  Rae8 {[%clk 0:00:51]} 18. Bxd5 {[%clk 0:01:52]}  Bxg5 {[%clk 0:00:43]} 19. Nxg5 {[%clk 0:01:52]} 1-0


[Site "https://www.chess.com"]

[Event "Titled Tuesday Blitz February 21 Early 2023"]
[White "Mendez Fortes, Eduardo Jesus"]
[Black "Demchenko, Anton"]
[WhiteFideId "3502376"]
[BlackFideId "4160258"]
[WhiteElo "2250"]
[BlackElo "2623"]
[Result "1-0"]
[Round "01"]
[TimeControl "180+2"]
[Date "2023.02.21"]
[WhiteClock "0:00:19"]
[BlackClock "0:00:02"]

1. e4 {[%clk 0:02:57]}  c5 {[%clk 0:02:57]} 2. Nf3 {[%clk 0:02:57]}  d6 {[%clk 0:02:57]} 3. d4 {[%clk 0:02:58]}  cxd4 {[%clk 0:02:57]} 4. Nxd4 {[%clk 0:02:58]}  Nf6 {[%clk 0:02:56]} 5. Nc3 {[%clk 0:02:59]}  Nc6 {[%clk 0:02:56]} 6. Bg5 {[%clk 0:03:00]}  Bd7 {[%clk 0:02:55]} 7. Qd2 {[%clk 0:02:58]}  a6 {[%clk 0:02:49]} 8. O-O-O {[%clk 0:02:58]}  e6 {[%clk 0:02:50]} 9. f4 {[%clk 0:02:52]}  Be7 {[%clk 0:02:49]} 10. Nf3 {[%clk 0:02:41]}  b5 {[%clk 0:02:48]} 11. e5 {[%clk 0:02:39]}  b4 {[%clk 0:02:48]} 12. exf6 {[%clk 0:02:38]}  bxc3 {[%clk 0:02:47]} 13. Qxc3 {[%clk 0:02:39]}  gxf6 {[%clk 0:02:47]} 14. Bh4 {[%clk 0:02:39]}  Rg8 {[%clk 0:02:47]} 15. Nd2 {[%clk 0:02:18]}  d5 {[%clk 0:02:29]} 16. Nb3 {[%clk 0:02:12]}  Rc8 {[%clk 0:02:14]} 17. Nd4 {[%clk 0:01:40]}  Nb4 {[%clk 0:01:53]} 18. Qb3 {[%clk 0:01:39]}  Ra8 {[%clk 0:01:47]} 19. a3 {[%clk 0:01:33]}  Nc6 {[%clk 0:01:44]} 20. Nxc6 {[%clk 0:01:33]}  Bxc6 {[%clk 0:01:45]} 21. f5 {[%clk 0:01:33]}  Rb8 {[%clk 0:01:32]} 22. Qc3 {[%clk 0:01:27]}  Ba4 {[%clk 0:01:13]} 23. Bxa6 {[%clk 0:01:19]}  Qd6 {[%clk 0:01:06]} 24. Bg3 {[%clk 0:01:03]}  e5 {[%clk 0:00:56]} 25. Bc4 {[%clk 0:00:53]}  d4 {[%clk 0:00:56]} 26. Rxd4 {[%clk 0:00:42]}  Rxg3 {[%clk 0:00:47]} 27. Qxg3 {[%clk 0:00:40]}  Qxd4 {[%clk 0:00:45]} 28. Qg8+ {[%clk 0:00:39]}  Kd7 {[%clk 0:00:16]} 29. Qxb8 {[%clk 0:00:38]}  Qxc4 {[%clk 0:00:04]} 30. Rd1+ {[%clk 0:00:33]}  Kc6 {[%clk 0:00:05]} 31. b3 {[%clk 0:00:20]}  Bxa3+ {[%clk 0:00:04]} 32. Kb1 {[%clk 0:00:20]}  Bxb3 {[%clk 0:00:03]} 33. Qxb3 {[%clk 0:00:19]}  Qxb3+ {[%clk 0:00:02]} 34. cxb3 {[%clk 0:00:20]}  e4 {[%clk 0:00:01]} 35. Kc2 {[%clk 0:00:18]}  Bd6 {[%clk 0:00:02]} 36. h3 {[%clk 0:00:18]}  Bf4 {[%clk 0:00:01]} 37. Rd4 {[%clk 0:00:17]}  Kc5 {[%clk 0:00:01]} 38. Rxe4 {[%clk 0:00:18]}  Be5 {[%clk 0:00:02]} 39. Rc4+ {[%clk 0:00:18]}  Kd5 {[%clk 0:00:02]} 40. g4 {[%clk 0:00:19]}  h6 {[%clk 0:00:02]} 41. Kd3 {[%clk 0:00:19]}  Bh2 {[%clk 0:00:01]} 42. b4 {[%clk 0:00:20]}  Bg3 {[%clk 0:00:01]} 43. b5 {[%clk 0:00:19]}  Bh2 {[%clk 0:00:02]} 44. Rc8 {[%clk 0:00:18]}  Kd6 {[%clk 0:00:02]} 45. b6 {[%clk 0:00:18]}  Kd7 {[%clk 0:00:02]} 46. b7 {[%clk 0:00:19]} 1-0


[Site "https://www.chess.com"]

[Event "Titled Tuesday Blitz February 21 Early 2023"]
[White "Kovalenko, Igor"]
[Black "Shuvalov, Evgenij"]
[WhiteFideId "14117908"]
[BlackFideId "4187237"]
[WhiteElo "2674"]
[BlackElo "2038"]
[Result "1-0"]
[Round "01"]
[TimeControl "180+2"]
[Date "2023.02.21"]
[WhiteClock "0:00:35"]
[BlackClock "0:00:05"]

1. d4 {[%clk 0:02:59]}  Nf6 {[%clk 0:02:59]} 2. Nf3 {[%clk 0:02:59]}  g6 {[%clk 0:02:58]} 3. Bf4 {[%clk 0:02:58]}  Bg7 {[%clk 0:02:57]} 4. e3 {[%clk 0:02:58]}  O-O {[%clk 0:02:56]} 5. c3 {[%clk 0:02:58]}  b6 {[%clk 0:02:53]} 6. h3 {[%clk 0:02:58]}  Bb7 {[%clk 0:02:53]} 7. a4 {[%clk 0:02:59]}  a6 {[%clk 0:02:52]} 8. Bc4 {[%clk 0:02:56]}  d6 {[%clk 0:02:51]} 9. O-O {[%clk 0:02:57]}  c5 {[%clk 0:02:49]} 10. Re1 {[%clk 0:02:56]}  d5 {[%clk 0:02:40]} 11. Bf1 {[%clk 0:02:53]}  Nbd7 {[%clk 0:02:39]} 12. Nbd2 {[%clk 0:02:52]}  Re8 {[%clk 0:02:32]} 13. Ne5 {[%clk 0:02:50]}  e6 {[%clk 0:02:27]} 14. b4 {[%clk 0:02:40]}  cxb4 {[%clk 0:02:25]} 15. cxb4 {[%clk 0:02:40]}  Rc8 {[%clk 0:02:24]} 16. Qb3 {[%clk 0:02:30]}  Nh5 {[%clk 0:02:02]} 17. Bh2 {[%clk 0:02:26]}  Nxe5 {[%clk 0:02:01]} 18. dxe5 {[%clk 0:02:16]}  Bf8 {[%clk 0:01:58]} 19. g4 {[%clk 0:02:14]}  Ng7 {[%clk 0:01:57]} 20. Nf3 {[%clk 0:02:14]}  Re7 {[%clk 0:01:56]} 21. Rec1 {[%clk 0:02:11]}  Rec7 {[%clk 0:01:56]} 22. Rxc7 {[%clk 0:02:11]}  Qxc7 {[%clk 0:01:55]} 23. Nd4 {[%clk 0:02:12]}  Qc3 {[%clk 0:01:47]} 24. Qxc3 {[%clk 0:02:00]}  Rxc3 {[%clk 0:01:48]} 25. b5 {[%clk 0:02:00]}  a5 {[%clk 0:01:46]} 26. Bf4 {[%clk 0:02:00]}  Ne8 {[%clk 0:01:45]} 27. Bg5 {[%clk 0:01:59]}  Bc5 {[%clk 0:01:36]} 28. Bd8 {[%clk 0:01:56]}  Kg7 {[%clk 0:01:28]} 29. Rb1 {[%clk 0:01:48]}  h6 {[%clk 0:01:20]} 30. Nb3 {[%clk 0:01:48]}  f6 {[%clk 0:00:44]} 31. Nxc5 {[%clk 0:01:46]}  bxc5 {[%clk 0:00:44]} 32. Bxa5 {[%clk 0:01:45]}  Ra3 {[%clk 0:00:44]} 33. Bb6 {[%clk 0:01:38]}  Rxa4 {[%clk 0:00:41]} 34. exf6+ {[%clk 0:01:38]}  Nxf6 {[%clk 0:00:40]} 35. Bxc5 {[%clk 0:01:39]}  Ne4 {[%clk 0:00:38]} 36. Bd4+ {[%clk 0:01:36]}  Kf7 {[%clk 0:00:38]} 37. Rc1 {[%clk 0:01:36]}  Nd6 {[%clk 0:00:26]} 38. Rc7+ {[%clk 0:01:35]}  Ke8 {[%clk 0:00:26]} 39. Be5 {[%clk 0:01:33]}  Nf7 {[%clk 0:00:15]} 40. Bf6 {[%clk 0:01:33]}  Ba8 {[%clk 0:00:14]} 41. b6 {[%clk 0:01:29]}  Nd6 {[%clk 0:00:11]} 42. Re7+ {[%clk 0:01:05]}  Kf8 {[%clk 0:00:10]} 43. Rxe6 {[%clk 0:00:54]}  Nc4 {[%clk 0:00:11]} 44. Bd4 {[%clk 0:00:30]}  Rb4 {[%clk 0:00:09]} 45. Rxg6 {[%clk 0:00:30]}  Nxb6 {[%clk 0:00:08]} 46. Rxb6 {[%clk 0:00:29]}  Rxb6 {[%clk 0:00:09]} 47. Bxb6 {[%clk 0:00:30]}  Kf7 {[%clk 0:00:08]} 48. Bd4 {[%clk 0:00:31]}  Kg6 {[%clk 0:00:08]} 49. f4 {[%clk 0:00:30]}  Bc6 {[%clk 0:00:08]} 50. Bd3+ {[%clk 0:00:31]}  Kf7 {[%clk 0:00:08]} 51. h4 {[%clk 0:00:32]}  Bd7 {[%clk 0:00:08]} 52. f5 {[%clk 0:00:33]}  Bc6 {[%clk 0:00:07]} 53. g5 {[%clk 0:00:33]}  hxg5 {[%clk 0:00:08]} 54. hxg5 {[%clk 0:00:34]}  Kg8 {[%clk 0:00:08]} 55. g6 {[%clk 0:00:35]}  Be8 {[%clk 0:00:08]} 56. Kf2 {[%clk 0:00:35]}  Bd7 {[%clk 0:00:08]} 57. Kg3 {[%clk 0:00:35]}  Be8 {[%clk 0:00:08]} 58. f6 {[%clk 0:00:36]}  Kf8 {[%clk 0:00:06]} 59. Bf5 {[%clk 0:00:35]}  Kg8 {[%clk 0:00:05]} 60. Be6+ {[%clk 0:00:34]}  Kf8 {[%clk 0:00:05]} 61. Bc5# {[%clk 0:00:35]} 1-0


[Site "https://www.chess.com"]

[Event "Titled Tuesday Blitz February 21 Early 2023"]
[White "Tifferet, Shaked"]
[Black "Perez Ponsa, Federico"]
[WhiteFideId "2811529"]
[BlackFideId "117927"]
[WhiteElo "2142"]
[BlackElo "2532"]
[Result "1-0"]
[Round "01"]
[TimeControl "180+2"]
[Date "2023.02.21"]
[WhiteClock "0:00:14"]
[BlackClock "0:00:38"]

1. e4 {[%clk 0:03:00]}  c5 {[%clk 0:02:54]} 2. Nf3 {[%clk 0:03:00]}  d6 {[%clk 0:02:55]} 3. Nc3 {[%clk 0:02:59]}  Nf6 {[%clk 0:02:55]} 4. e5 {[%clk 0:03:00]}  dxe5 {[%clk 0:02:56]} 5. Nxe5 {[%clk 0:03:01]}  a6 {[%clk 0:02:56]} 6. g3 {[%clk 0:02:59]}  Qd6 {[%clk 0:02:57]} 7. Nf3 {[%clk 0:02:59]}  Bg4 {[%clk 0:02:56]} 8. Bg2 {[%clk 0:02:58]}  Qe6+ {[%clk 0:02:57]} 9. Qe2 {[%clk 0:02:57]}  Qxe2+ {[%clk 0:02:50]} 10. Nxe2 {[%clk 0:02:57]}  Nc6 {[%clk 0:02:51]} 11. a3 {[%clk 0:02:54]}  e6 {[%clk 0:02:48]} 12. d3 {[%clk 0:02:51]}  Be7 {[%clk 0:02:47]} 13. h3 {[%clk 0:02:49]}  Bh5 {[%clk 0:02:46]} 14. g4 {[%clk 0:02:50]}  Bg6 {[%clk 0:02:47]} 15. Nh4 {[%clk 0:02:48]}  Rc8 {[%clk 0:02:46]} 16. b3 {[%clk 0:02:41]}  Nd5 {[%clk 0:02:39]} 17. Nxg6 {[%clk 0:02:40]}  hxg6 {[%clk 0:02:40]} 18. Bb2 {[%clk 0:02:29]}  Bf6 {[%clk 0:02:31]} 19. Bxf6 {[%clk 0:02:20]}  Nxf6 {[%clk 0:02:32]} 20. Nc3 {[%clk 0:01:58]}  Rc7 {[%clk 0:02:25]} 21. Kd2 {[%clk 0:01:55]}  Ke7 {[%clk 0:02:22]} 22. Rae1 {[%clk 0:01:51]}  g5 {[%clk 0:02:17]} 23. Bxc6 {[%clk 0:01:48]}  Rxc6 {[%clk 0:02:17]} 24. f3 {[%clk 0:01:46]}  Nd5 {[%clk 0:02:16]} 25. Nxd5+ {[%clk 0:01:45]}  Kd6 {[%clk 0:02:07]} 26. Nc3 {[%clk 0:01:46]}  f6 {[%clk 0:02:06]} 27. Re2 {[%clk 0:01:44]}  Ke7 {[%clk 0:02:05]} 28. Reh2 {[%clk 0:01:44]}  Kf7 {[%clk 0:02:03]} 29. h4 {[%clk 0:01:44]}  gxh4 {[%clk 0:02:04]} 30. Rxh4 {[%clk 0:01:44]}  Rd8 {[%clk 0:02:05]} 31. g5 {[%clk 0:01:41]}  f5 {[%clk 0:02:00]} 32. Rh8 {[%clk 0:01:38]}  Rd7 {[%clk 0:01:59]} 33. f4 {[%clk 0:01:33]}  b5 {[%clk 0:02:00]} 34. Re1 {[%clk 0:01:28]}  c4 {[%clk 0:01:55]} 35. bxc4 {[%clk 0:01:19]}  bxc4 {[%clk 0:01:54]} 36. Rh3 {[%clk 0:01:15]}  cxd3 {[%clk 0:01:34]} 37. Rxd3 {[%clk 0:01:15]}  Rdc7 {[%clk 0:01:34]} 38. Rb1 {[%clk 0:00:53]}  Kg6 {[%clk 0:01:30]} 39. Rb4 {[%clk 0:00:48]}  Kh5 {[%clk 0:01:27]} 40. Rbd4 {[%clk 0:00:43]}  Kg4 {[%clk 0:01:20]} 41. g6 {[%clk 0:00:32]}  a5 {[%clk 0:01:20]} 42. Rd6 {[%clk 0:00:25]}  Rxd6 {[%clk 0:01:04]} 43. Rxd6 {[%clk 0:00:26]}  Kxf4 {[%clk 0:00:55]} 44. Rxe6 {[%clk 0:00:25]}  Kg5 {[%clk 0:00:56]} 45. Nd5 {[%clk 0:00:22]}  Rc5 {[%clk 0:00:53]} 46. Ne7 {[%clk 0:00:18]}  f4 {[%clk 0:00:50]} 47. Rd6 {[%clk 0:00:16]}  f3 {[%clk 0:00:48]} 48. Rd5+ {[%clk 0:00:15]}  Rxd5+ {[%clk 0:00:41]} 49. Nxd5 {[%clk 0:00:16]}  Kxg6 {[%clk 0:00:42]} 50. Ke3 {[%clk 0:00:16]}  Kf5 {[%clk 0:00:43]} 51. Kxf3 {[%clk 0:00:16]}  Ke5 {[%clk 0:00:41]} 52. c4 {[%clk 0:00:16]}  Kd4 {[%clk 0:00:42]} 53. Ne3 {[%clk 0:00:15]}  g5 {[%clk 0:00:37]} 54. a4 {[%clk 0:00:15]}  Kc5 {[%clk 0:00:37]} 55. Kg4 {[%clk 0:00:14]}  Kd4 {[%clk 0:00:38]} 56. Kxg5 {[%clk 0:00:14]} 1-0


[Site "https://www.chess.com"]

[Event "Titled Tuesday Blitz February 21 Early 2023"]
[White "Ronka, Erik"]
[Black "Vokhidov, Shamsiddin"]
[WhiteFideId "505080"]
[BlackFideId "14204223"]
[WhiteElo "2276"]
[BlackElo "2586"]
[Result "0-1"]
[Round "01"]
[TimeControl "180+2"]
[Date "2023.02.21"]
[WhiteClock "0:00:08"]
[BlackClock "0:02:20"]

1. e4 {[%clk 0:03:00]}  c5 {[%clk 0:02:59]} 2. Nf3 {[%clk 0:03:01]}  d6 {[%clk 0:02:59]} 3. d4 {[%clk 0:03:01]}  cxd4 {[%clk 0:03:00]} 4. Nxd4 {[%clk 0:03:02]}  Nf6 {[%clk 0:02:59]} 5. Nc3 {[%clk 0:03:02]}  Nc6 {[%clk 0:02:59]} 6. Bg5 {[%clk 0:03:02]}  Bd7 {[%clk 0:02:59]} 7. Qd2 {[%clk 0:03:01]}  a6 {[%clk 0:02:59]} 8. O-O-O {[%clk 0:02:58]}  e6 {[%clk 0:02:59]} 9. f4 {[%clk 0:02:58]}  b5 {[%clk 0:02:57]} 10. Bxf6 {[%clk 0:02:56]}  gxf6 {[%clk 0:02:58]} 11. Kb1 {[%clk 0:02:44]}  Qb6 {[%clk 0:02:57]} 12. Nxc6 {[%clk 0:02:44]}  Bxc6 {[%clk 0:02:58]} 13. f5 {[%clk 0:02:44]}  b4 {[%clk 0:02:56]} 14. Ne2 {[%clk 0:02:44]}  e5 {[%clk 0:02:57]} 15. Ng3 {[%clk 0:02:36]}  h5 {[%clk 0:02:56]} 16. h4 {[%clk 0:02:36]}  Qc5 {[%clk 0:02:38]} 17. Qe2 {[%clk 0:01:53]}  Ke7 {[%clk 0:02:37]} 18. Nxh5 {[%clk 0:01:48]}  Bb5 {[%clk 0:02:36]} 19. Qf3 {[%clk 0:01:33]}  Rc8 {[%clk 0:02:33]} 20. Bd3 {[%clk 0:00:58]}  Bxd3 {[%clk 0:02:31]} 21. cxd3 {[%clk 0:00:59]}  Qc2+ {[%clk 0:02:32]} 22. Ka1 {[%clk 0:00:58]}  Bh6 {[%clk 0:02:31]} 23. g4 {[%clk 0:00:55]}  Bc1 {[%clk 0:02:19]} 24. Rxc1 {[%clk 0:00:08]}  Qxc1+ {[%clk 0:02:19]} 25. Rxc1 {[%clk 0:00:08]}  Rxc1# {[%clk 0:02:20]} 0-1


[Site "https://www.chess.com"]

[Event "Titled Tuesday Blitz February 21 Early 2023"]
[White "Zhukova, Natalia"]
[Black "Zhigalko, Sergei"]
[WhiteFideId "14101513"]
[BlackFideId "13502956"]
[WhiteElo "2324"]
[BlackElo "2572"]
[Result "0-1"]
[Round "01"]
[TimeControl "180+2"]
[Date "2023.02.21"]
[WhiteClock "0:00:01"]
[BlackClock "0:00:48"]

1. c4 {[%clk 0:02:59]}  e5 {[%clk 0:02:59]} 2. Nc3 {[%clk 0:02:58]}  Nf6 {[%clk 0:03:00]} 3. Nf3 {[%clk 0:02:59]}  Nc6 {[%clk 0:02:59]} 4. e4 {[%clk 0:02:59]}  Bb4 {[%clk 0:02:58]} 5. d3 {[%clk 0:02:59]}  d6 {[%clk 0:02:57]} 6. a3 {[%clk 0:02:59]}  Bc5 {[%clk 0:02:58]} 7. b4 {[%clk 0:02:56]}  Bb6 {[%clk 0:02:58]} 8. g3 {[%clk 0:02:55]}  Bg4 {[%clk 0:02:53]} 9. Bg2 {[%clk 0:02:55]}  a5 {[%clk 0:02:53]} 10. Rb1 {[%clk 0:02:54]}  axb4 {[%clk 0:02:53]} 11. axb4 {[%clk 0:02:55]}  O-O {[%clk 0:02:51]} 12. O-O {[%clk 0:02:55]}  Nd4 {[%clk 0:02:51]} 13. Bg5 {[%clk 0:02:48]}  c6 {[%clk 0:02:38]} 14. Be3 {[%clk 0:02:47]}  Ra3 {[%clk 0:02:33]} 15. Bxd4 {[%clk 0:02:43]}  Bxd4 {[%clk 0:02:31]} 16. Ne2 {[%clk 0:02:43]}  Bb6 {[%clk 0:02:25]} 17. h3 {[%clk 0:02:39]}  Be6 {[%clk 0:02:22]} 18. Kh2 {[%clk 0:02:36]}  h6 {[%clk 0:02:19]} 19. Ra1 {[%clk 0:02:13]}  Qa8 {[%clk 0:02:11]} 20. Qc1 {[%clk 0:02:13]}  Rxa1 {[%clk 0:02:06]} 21. Qxa1 {[%clk 0:02:13]}  Qxa1 {[%clk 0:02:07]} 22. Rxa1 {[%clk 0:02:13]}  Bxf2 {[%clk 0:02:06]} 23. g4 {[%clk 0:01:39]}  Be3 {[%clk 0:01:53]} 24. Kg3 {[%clk 0:01:33]}  Rb8 {[%clk 0:01:48]} 25. Ra3 {[%clk 0:01:16]}  b5 {[%clk 0:01:34]} 26. cxb5 {[%clk 0:01:00]}  Rxb5 {[%clk 0:01:28]} 27. Ra8+ {[%clk 0:00:51]}  Kh7 {[%clk 0:01:29]} 28. Rd8 {[%clk 0:00:47]}  Bd7 {[%clk 0:01:11]} 29. h4 {[%clk 0:00:22]}  g5 {[%clk 0:01:01]} 30. hxg5 {[%clk 0:00:20]}  hxg5 {[%clk 0:01:02]} 31. d4 {[%clk 0:00:05]}  Nxe4+ {[%clk 0:00:52]} 32. Kh2 {[%clk 0:00:05]}  Nf6 {[%clk 0:00:51]} 33. dxe5 {[%clk 0:00:03]}  dxe5 {[%clk 0:00:52]} 34. Ng3 {[%clk 0:00:01]}  Bf4 {[%clk 0:00:48]} 0-1


[Site "https://www.chess.com"]

[Event "Titled Tuesday Blitz February 21 Early 2023"]
[White "Bharath Subramaniyam H"]
[Black "Bambino Filho, Antonio Carlos"]
[WhiteFideId "46634827"]
[BlackFideId "2113163"]
[WhiteElo "2517"]
[BlackElo "2144"]
[Result "1-0"]
[Round "01"]
[TimeControl "180+2"]
[Date "2023.02.21"]
[WhiteClock "0:01:26"]
[BlackClock "0:02:04"]

1. e4 {[%clk 0:02:50]}  c5 {[%clk 0:02:59]} 2. Nf3 {[%clk 0:02:49]}  d6 {[%clk 0:02:59]} 3. Bb5+ {[%clk 0:02:48]}  Nc6 {[%clk 0:02:59]} 4. O-O {[%clk 0:02:48]}  Bd7 {[%clk 0:02:58]} 5. Re1 {[%clk 0:02:47]}  Nf6 {[%clk 0:02:59]} 6. c3 {[%clk 0:02:46]}  a6 {[%clk 0:02:59]} 7. Bf1 {[%clk 0:02:46]}  Bg4 {[%clk 0:02:59]} 8. h3 {[%clk 0:02:45]}  Bh5 {[%clk 0:02:58]} 9. a4 {[%clk 0:02:41]}  e6 {[%clk 0:02:57]} 10. Na3 {[%clk 0:02:29]}  Be7 {[%clk 0:02:54]} 11. Nc2 {[%clk 0:02:29]}  O-O {[%clk 0:02:53]} 12. d4 {[%clk 0:02:29]}  cxd4 {[%clk 0:02:45]} 13. cxd4 {[%clk 0:02:29]}  d5 {[%clk 0:02:45]} 14. e5 {[%clk 0:02:29]}  Ne4 {[%clk 0:02:44]} 15. Be2 {[%clk 0:02:25]}  Rc8 {[%clk 0:02:41]} 16. Nh2 {[%clk 0:02:16]}  Bg6 {[%clk 0:02:31]} 17. Bd3 {[%clk 0:02:16]}  Nb4 {[%clk 0:02:30]} 18. Nxb4 {[%clk 0:02:16]}  Bxb4 {[%clk 0:02:30]} 19. Re2 {[%clk 0:02:14]}  Qb6 {[%clk 0:02:28]} 20. Be3 {[%clk 0:02:10]}  Be7 {[%clk 0:02:20]} 21. Nf1 {[%clk 0:02:06]}  f5 {[%clk 0:02:09]} 22. a5 {[%clk 0:01:31]}  Qb4 {[%clk 0:02:04]} 23. Ra4 {[%clk 0:01:26]} 1-0


[Site "https://www.chess.com"]

[Event "Titled Tuesday Blitz February 21 Early 2023"]
[White "Bozorov, Makhsum"]
[Black "Mitrabha, Guha"]
[WhiteFideId "14201330"]
[BlackFideId "5057000"]
[WhiteElo "2145"]
[BlackElo "2507"]
[Result "0-1"]
[Round "01"]
[TimeControl "180+2"]
[Date "2023.02.21"]
[WhiteClock "0:00:12"]
[BlackClock "0:01:09"]

1. d4 {[%clk 0:03:00]}  Nf6 {[%clk 0:01:56]} 2. Nf3 {[%clk 0:02:57]}  b6 {[%clk 0:01:56]} 3. g3 {[%clk 0:02:55]}  Bb7 {[%clk 0:01:57]} 4. Bg2 {[%clk 0:02:55]}  c5 {[%clk 0:01:57]} 5. O-O {[%clk 0:02:53]}  cxd4 {[%clk 0:01:58]} 6. Nxd4 {[%clk 0:02:54]}  Bxg2 {[%clk 0:01:59]} 7. Kxg2 {[%clk 0:02:54]}  Qc8 {[%clk 0:01:59]} 8. Qd3 {[%clk 0:02:42]}  Nc6 {[%clk 0:01:59]} 9. Nxc6 {[%clk 0:02:41]}  Qxc6+ {[%clk 0:01:57]} 10. Kg1 {[%clk 0:02:41]}  h5 {[%clk 0:01:58]} 11. h4 {[%clk 0:02:33]}  g6 {[%clk 0:01:59]} 12. c4 {[%clk 0:02:31]}  Bg7 {[%clk 0:01:59]} 13. Nc3 {[%clk 0:02:31]}  Ng4 {[%clk 0:02:00]} 14. Bf4 {[%clk 0:02:16]}  O-O {[%clk 0:01:57]} 15. Rac1 {[%clk 0:02:13]}  Rfe8 {[%clk 0:01:54]} 16. b3 {[%clk 0:02:09]}  Rac8 {[%clk 0:01:52]} 17. e4 {[%clk 0:01:50]}  a6 {[%clk 0:01:49]} 18. f3 {[%clk 0:01:43]}  Ne5 {[%clk 0:01:47]} 19. Bxe5 {[%clk 0:01:43]}  Bxe5 {[%clk 0:01:48]} 20. Kg2 {[%clk 0:01:43]}  b5 {[%clk 0:01:47]} 21. Nd5 {[%clk 0:01:38]}  e6 {[%clk 0:01:33]} 22. Ne3 {[%clk 0:01:36]}  b4 {[%clk 0:01:32]} 23. Rcd1 {[%clk 0:01:33]}  Rc7 {[%clk 0:01:31]} 24. Nc2 {[%clk 0:01:27]}  a5 {[%clk 0:01:31]} 25. Nd4 {[%clk 0:01:26]}  Qc5 {[%clk 0:01:31]} 26. Ne2 {[%clk 0:01:26]}  a4 {[%clk 0:01:31]} 27. f4 {[%clk 0:01:21]}  Bg7 {[%clk 0:01:30]} 28. e5 {[%clk 0:01:22]}  axb3 {[%clk 0:01:30]} 29. axb3 {[%clk 0:01:21]}  Ra8 {[%clk 0:01:31]} 30. Ra1 {[%clk 0:01:19]}  Rca7 {[%clk 0:01:31]} 31. Rxa7 {[%clk 0:01:19]}  Rxa7 {[%clk 0:01:31]} 32. Rd1 {[%clk 0:01:19]}  Ra2 {[%clk 0:01:30]} 33. Rd2 {[%clk 0:01:05]}  Qc6+ {[%clk 0:01:27]} 34. Kf2 {[%clk 0:00:57]}  Ra1 {[%clk 0:01:27]} 35. Rd1 {[%clk 0:00:44]}  Ra7 {[%clk 0:01:22]} 36. Qd6 {[%clk 0:00:38]}  Qb7 {[%clk 0:01:16]} 37. Qd3 {[%clk 0:00:21]}  Bf8 {[%clk 0:01:16]} 38. Qf3 {[%clk 0:00:20]}  Bc5+ {[%clk 0:01:15]} 39. Kg2 {[%clk 0:00:20]}  Qb6 {[%clk 0:01:15]} 40. Rd2 {[%clk 0:00:20]}  Kg7 {[%clk 0:01:15]} 41. Qd3 {[%clk 0:00:20]}  Kg8 {[%clk 0:01:10]} 42. Qf3 {[%clk 0:00:20]}  Kh7 {[%clk 0:01:09]} 43. Qe4 {[%clk 0:00:20]}  Kg7 {[%clk 0:01:09]} 44. Qf3 {[%clk 0:00:20]}  Qc7 {[%clk 0:01:09]} 45. Nc1 {[%clk 0:00:19]}  Ra1 {[%clk 0:01:08]} 46. Ne2 {[%clk 0:00:19]}  Qa7 {[%clk 0:01:08]} 47. Qd3 {[%clk 0:00:19]}  Be3 {[%clk 0:01:07]} 48. Rd1 {[%clk 0:00:17]}  Qb7+ {[%clk 0:01:07]} 49. Kh2 {[%clk 0:00:15]}  Qf3 {[%clk 0:01:08]} 50. Rxa1 {[%clk 0:00:14]}  Bg1+ {[%clk 0:01:08]} 51. Kxg1 {[%clk 0:00:12]}  Qxd3 {[%clk 0:01:09]} 52. Re1 {[%clk 0:00:11]}  Qxb3 {[%clk 0:01:09]} 53. Kf2 {[%clk 0:00:12]}  Qxc4 {[%clk 0:01:09]} 54. Rd1 {[%clk 0:00:13]}  b3 {[%clk 0:01:09]} 55. Rxd7 {[%clk 0:00:12]}  Qc5+ {[%clk 0:01:09]} 0-1


[Site "https://www.chess.com"]